bitfinex-derivatives/quotes_BTCF0:USTF0_20260314
["timestamp","ask_amount","ask_price","bid_price","bid_amount"]
[1773517374658,0.05506892,70759.0,70747.0,0.043957]
[1773517378452,0.042391,70759.0,70747.0,0.043957]
[1773517379362,0.042391,70758.0,70747.0,0.00156]
[1773517389581,0.042392,70757.0,70747.0,0.00156]
[1773517390482,0.042391,70759.0,70746.0,0.042398]
[1773517390983,0.042391,70759.0,70747.0,0.042398]
[1773517393072,0.042391,70759.0,70747.0,0.043958]
[1773517411702,0.042391,70759.0,70747.0,0.042398]
[1773517412887,0.042391,70759.0,70747.0,0.043958]
[1773517413202,0.042391,70759.0,70747.0,0.042398]
[1773517414501,0.042391,70759.0,70747.0,0.043958]
[1773517425308,0.05569692,70761.0,70747.0,0.043958]
[1773517425708,0.05569692,70761.0,70748.0,0.042397]
[1773517429504,0.042391,70759.0,70747.0,0.00156]
[1773517429808,0.01127915,70758.0,70747.0,0.043957]
[1773517430007,0.01127915,70758.0,70747.0,0.03151706]
[1773517431107,0.04239,70760.0,70747.0,0.03151706]
[1773517440412,0.042397,70749.0,70736.0,0.042404]
[1773517440716,0.02945351,70767.0,70737.0,0.042403]
[1773517440717,0.0104384,70748.0,70737.0,0.042403]
[1773517440900,0.0104384,70748.0,70738.0,0.042403]
[1773517441307,0.00156,70751.0,70739.0,0.042402]
[1773517441502,0.00156,70751.0,70736.0,0.01066859]
[1773517441721,0.00156,70756.0,70745.0,0.042398]
[1773517441915,0.042391,70759.0,70745.0,0.042398]
[1773517442215,0.00156,70758.0,70745.0,0.042398]
[1773517442411,0.0104384,70764.0,70743.0,0.00156]
[1773517442607,0.00156,70760.0,70748.0,0.042397]
[1773517442921,0.04239,70761.0,70749.0,0.3181406]
[1773517442922,0.04395,70761.0,70749.0,0.3181406]
[1773517443220,0.04395,70761.0,70750.0,0.3181406]
[1773517443420,0.04395,70761.0,70751.0,0.3181406]
[1773517443622,0.04395,70761.0,70752.0,0.3181006]
[1773517443821,0.04395,70761.0,70749.0,0.042396]
[1773517444414,0.01125,70760.0,70749.0,0.042396]
[1773517445018,0.04395,70761.0,70749.0,0.042396]
[1773517446825,0.04395,70761.0,70744.0,0.01066859]
[1773517446826,0.00156,70761.0,70750.0,0.042396]
[1773517447023,0.042388,70763.0,70750.0,0.042396]
[1773517447722,0.00156,70762.0,70750.0,0.042396]
[1773517447929,0.00156,70761.0,70752.0,0.042395]
[1773517448123,0.00156,70761.0,70750.0,0.11617701]
[1773517448324,0.042388,70763.0,70750.0,0.042396]
[1773517448523,0.00156,70762.0,70750.0,0.042396]
[1773517451034,0.00156,70762.0,70750.0,0.04243603]
[1773517454637,0.043949,70762.0,70750.0,0.04243603]
[1773517455530,0.043949,70762.0,70751.0,0.29469543]
[1773517455736,0.043949,70762.0,70750.0,0.04243603]
[1773517456935,0.043949,70762.0,70751.0,0.28821534]
[1773517457131,0.043949,70762.0,70750.0,0.04243603]
[1773517457132,0.043949,70762.0,70752.0,0.28821534]
[1773517457332,0.043949,70762.0,70752.0,4.003e-05]
[1773517458128,0.00156,70761.0,70752.0,4.003e-05]
[1773517460442,0.00156,70761.0,70753.0,0.30748862]
[1773517460634,0.00156,70761.0,70752.0,4.003e-05]
[1773517460838,0.00156,70761.0,70753.0,0.3074877]
[1773517461031,0.00156,70761.0,70752.0,4.003e-05]
[1773517461231,0.00156,70761.0,70753.0,0.30659848]
[1773517461431,0.00156,70761.0,70752.0,4.003e-05]
[1773517461631,0.00156,70761.0,70753.0,0.30658882]
[1773517461841,0.00156,70761.0,70752.0,4.003e-05]
[1773517462041,0.00156,70761.0,70753.0,0.30473693]
[1773517462243,0.00156,70761.0,70752.0,4.003e-05]
[1773517462538,0.00156,70761.0,70753.0,0.30472866]
[1773517462734,0.00156,70761.0,70752.0,4.003e-05]
[1773517467343,0.0104384,70769.0,70752.0,4.003e-05]
[1773517467344,0.01125,70770.0,70753.0,0.29644307]
[1773517467651,0.042385,70768.0,70756.0,0.042392]
[1773517467848,0.042385,70768.0,70756.0,0.04243203]
[1773517482462,0.00156,70769.0,70756.0,4.003e-05]
[1773517482463,0.042386,70766.0,70756.0,4.003e-05]
[1773517483155,0.042386,70767.0,70756.0,4.003e-05]
[1773517485052,0.042387,70766.0,70756.0,4.003e-05]
[1773517485560,0.042386,70767.0,70756.0,4.003e-05]
[1773517486664,0.00156,70769.0,70756.0,4.003e-05]
[1773517486960,0.01125,70770.0,70756.0,0.01029466]
[1773517488167,0.053634,70770.0,70758.0,0.042391]
[1773517488466,0.042384,70770.0,70758.0,0.04243103]
[1773517500083,0.00156,70771.0,70759.0,0.04239]
[1773517500486,0.043944,70771.0,70759.0,0.04239]
[1773517500789,0.042384,70771.0,70759.0,0.04239]
[1773517500976,0.043944,70771.0,70759.0,0.04239]
[1773517501289,0.042384,70771.0,70759.0,0.04239]
[1773517501984,0.00156,70771.0,70759.0,0.01140637]
[1773517502182,0.00156,70771.0,70760.0,0.11616214]
[1773517502376,0.00156,70772.0,70761.0,0.042389]
[1773517503579,0.042381,70775.0,70762.0,0.042388]
[1773517503775,0.042381,70775.0,70762.0,0.04242803]
[1773517504685,0.043941,70775.0,70762.0,0.04242803]
[1773517505382,0.042381,70775.0,70762.0,0.04242803]
[1773517505591,0.042382,70774.0,70762.0,0.04242803]
[1773517506576,0.043942,70774.0,70762.0,0.04242803]
[1773517506983,0.042382,70774.0,70762.0,0.04242803]
[1773517507181,0.043942,70774.0,70762.0,0.04242803]
[1773517507573,0.01125,70778.0,70764.0,0.07377214]
[1773517507777,0.01125,70778.0,70768.0,0.07377214]
[1773517507985,0.042385,70769.0,70757.0,0.00156]
[1773517508175,0.01251118,70771.0,70757.0,0.00156]
[1773517508378,0.042386,70768.0,70757.0,0.00156]
[1773517511578,0.042386,70768.0,70755.0,0.042393]
[1773517511792,0.05489718,70768.0,70755.0,0.042393]
[1773517512588,0.05645718,70768.0,70755.0,0.042393]
[1773517513789,0.05489718,70768.0,70755.0,0.042393]
[1773517514285,0.042386,70768.0,70755.0,0.042393]
[1773517514488,0.042386,70768.0,70756.0,0.042392]
[1773517514790,0.043946,70768.0,70756.0,0.042392]
[1773517519098,0.043946,70768.0,70754.0,0.00156]
[1773517519099,0.00156,70768.0,70759.0,0.04239]
[1773517519392,0.00156,70770.0,70759.0,0.04239]
[1773517519795,0.043944,70770.0,70757.0,0.042392]
[1773517520395,0.01251118,70769.0,70750.0,0.07376798]
[1773517520595,0.01251118,70769.0,70748.0,0.1710446]
[1773517520796,0.042386,70767.0,70748.0,0.1710446]
[1773517521694,0.042387,70765.0,70748.0,0.1710446]
[1773517522290,0.042387,70765.0,70753.0,0.042394]
[1773517522490,0.042387,70765.0,70754.0,0.00156]
[1773517525593,0.042387,70765.0,70753.0,0.042394]
[1773517532301,0.07532798,70770.0,70748.0,0.042397]
[1773517532499,0.04239,70761.0,70749.0,0.043956]
[1773517532804,0.01315788,70762.0,70750.0,0.042396]
[1773517532997,0.05554688,70762.0,70750.0,0.042396]
[1773517533499,0.01315788,70762.0,70750.0,0.042396]
[1773517534092,0.01315788,70762.0,70751.0,0.042395]
[1773517537208,0.00156,70763.0,70751.0,0.042395]
[1773517540113,0.00156,70763.0,70744.0,0.01255323]
[1773517540305,0.00156,70763.0,70749.0,0.00156]
[1773517540614,0.00156,70763.0,70744.0,0.01255323]
[1773517541010,0.04239,70761.0,70749.0,0.042396]
[1773517545715,0.04239,70760.0,70749.0,0.042396]
[1773517546020,0.04239,70760.0,70747.0,0.043957]
[1773517546713,0.04239,70760.0,70748.0,0.00156]
[1773517547020,0.00156,70763.0,70743.0,0.00156]
[1773517547213,0.01315788,70762.0,70743.0,0.00156]
[1773517547521,0.01315788,70762.0,70740.0,0.08632121]
[1773517547819,0.01315788,70762.0,70744.0,0.00156]
[1773517548008,0.042392,70758.0,70745.0,0.042399]
[1773517550122,0.042392,70758.0,70746.0,0.042398]
[1773517553027,0.042392,70757.0,70744.0,0.043959]
[1773517553519,0.042392,70757.0,70745.0,0.00156]
[1773517553820,0.042392,70757.0,70744.0,0.042399]
[1773517554004,0.042392,70757.0,70745.0,0.00156]
[1773517554511,0.042392,70757.0,70744.0,0.042399]
[1773517554512,0.042392,70757.0,70746.0,0.00156]
[1773517555317,0.042392,70757.0,70744.0,0.042399]
[1773517555518,0.042392,70757.0,70745.0,0.043959]
[1773517555919,0.042392,70757.0,70746.0,0.00156]
[1773517557223,0.042392,70757.0,70745.0,0.043959]
[1773517559617,0.042392,70757.0,70745.0,0.042399]
[1773517559817,0.042392,70757.0,70745.0,0.043959]
[1773517560720,0.042392,70757.0,70740.0,0.07376798]
[1773517560721,0.042392,70757.0,70746.0,0.042398]
[1773517560927,0.042394,70753.0,70741.0,0.042401]
[1773517561826,0.043953,70755.0,70742.0,0.0424]
[1773517564124,0.042394,70754.0,70742.0,0.0424]
[1773517568522,0.042394,70753.0,70741.0,0.00156]
[1773517569734,0.042394,70753.0,70741.0,0.043961]
[1773517573028,0.042395,70752.0,70741.0,0.043961]
[1773517573934,0.042395,70752.0,70741.0,0.042401]
[1773517581238,0.042395,70752.0,70739.0,0.042402]
[1773517581437,0.042395,70752.0,70739.0,0.043962]
[1773517582129,0.042395,70752.0,70740.0,0.042402]
[1773517585543,0.042395,70752.0,70739.0,0.00156]
[1773517585544,0.042395,70752.0,70739.0,0.043962]
[1773517586042,0.042395,70752.0,70739.0,0.042402]
[1773517587941,0.042396,70750.0,70739.0,0.042402]
[1773517588440,0.042396,70750.0,70737.0,0.042403]
[1773517588640,0.042396,70750.0,70738.0,0.00156]
[1773517589338,0.00156,70755.0,70736.0,0.00156]
[1773517589542,0.01211117,70753.0,70728.0,0.03822731]
[1773517589733,0.0424,70743.0,70730.0,0.042407]
[1773517590434,0.00156,70744.0,70724.0,0.1694846]
[1773517590435,0.042402,70741.0,70724.0,0.1694846]
[1773517590633,0.00156,70744.0,70729.0,0.042408]
[1773517590634,0.0424,70743.0,70729.0,0.042408]
[1773517592234,0.00156,70744.0,70725.0,0.01391001]
[1773517593940,0.00156,70744.0,70725.0,0.00156]
[1773517594146,0.00156,70744.0,70726.0,0.01235001]
[1773517595145,0.0424,70743.0,70730.0,0.042408]
[1773517597342,0.01367117,70744.0,70725.0,0.043971]
[1773517597547,0.042402,70740.0,70726.0,0.04241]
[1773517597936,0.042402,70740.0,70727.0,0.043969]
[1773517598338,0.042403,70739.0,70726.0,0.04241]
[1773517598646,0.042403,70739.0,70727.0,0.042409]
[1773517598849,0.042403,70739.0,70727.0,0.043969]
[1773517599750,0.01367117,70744.0,70730.0,0.042408]
[1773517600452,0.01125,70751.0,70733.0,0.042406]
[1773517600643,0.042399,70745.0,70733.0,0.05475601]
[1773517600844,0.042399,70745.0,70733.0,0.05631601]
[1773517603349,0.03761052,70745.0,70734.0,0.01235001]
[1773517603653,0.03282204,70745.0,70734.0,0.01235001]
[1773517608549,0.03282204,70745.0,70719.0,0.16906536]
[1773517608550,0.00156,70748.0,70735.0,0.0753572]
[1773517608751,0.00156,70748.0,70736.0,0.01391001]
[1773517610047,0.00156,70748.0,70738.0,0.042403]
[1773517610250,0.00156,70748.0,70739.0,0.042402]
[1773517612250,0.042396,70751.0,70739.0,0.0540646]
[1773517614849,0.042396,70751.0,70739.0,0.042402]
[1773517616947,0.042396,70751.0,70740.0,0.0737972]
[1773517619159,0.042396,70750.0,70740.0,0.0737972]
[1773517619361,0.042396,70750.0,70737.0,0.042403]
[1773517619854,0.042396,70750.0,70738.0,0.042403]
[1773517620258,0.01128873,70748.0,70736.0,0.043964]
[1773517620558,0.01128873,70748.0,70735.0,0.042405]
[1773517621961,0.042398,70747.0,70735.0,0.043965]
[1773517622261,0.042398,70747.0,70735.0,0.042405]
[1773517622463,0.042398,70747.0,70735.0,0.043965]
[1773517623256,0.042398,70747.0,70735.0,0.042405]
[1773517623862,0.042398,70747.0,70735.0,0.043965]
[1773517624258,0.042398,70747.0,70735.0,0.042405]
[1773517624463,0.042398,70747.0,70735.0,0.043965]
[1773517625259,0.042398,70747.0,70735.0,0.042405]
[1773517625464,0.042398,70747.0,70735.0,0.043965]
[1773517625765,0.042398,70747.0,70735.0,0.042405]
[1773517625970,0.042398,70747.0,70735.0,0.043965]
[1773517626265,0.042398,70747.0,70735.0,0.042405]
[1773517626564,0.042398,70747.0,70735.0,0.043965]
[1773517626770,0.042398,70747.0,70735.0,0.042405]
[1773517626957,0.042398,70747.0,70735.0,0.043965]
[1773517627767,0.042398,70747.0,70735.0,0.042405]
[1773517627960,0.042398,70747.0,70735.0,0.043965]
[1773517628767,0.042398,70747.0,70735.0,0.042405]
[1773517628964,0.042398,70747.0,70735.0,0.043965]
[1773517629265,0.042398,70747.0,70735.0,0.042405]
[1773517629567,0.042398,70747.0,70735.0,0.043965]
[1773517636467,0.042398,70747.0,70736.0,0.042404]
[1773517637873,0.042397,70749.0,70736.0,0.042404]
[1773517640077,0.01128873,70752.0,70735.0,0.00156]
[1773517640370,0.042393,70755.0,70742.0,0.0424]
[1773517640767,0.043954,70754.0,70742.0,0.0424]
[1773517640962,0.00156,70753.0,70742.0,0.0424]
[1773517641368,0.042394,70754.0,70742.0,0.0424]
[1773517641681,0.00156,70753.0,70742.0,0.0424]
[1773517641877,0.042394,70754.0,70742.0,0.0424]
[1773517642069,0.00156,70753.0,70742.0,0.0424]
[1773517642270,0.043954,70753.0,70742.0,0.0424]
[1773517642876,0.042394,70753.0,70742.0,0.0424]
[1773517643076,0.043954,70753.0,70742.0,0.0424]
[1773517643380,0.042394,70753.0,70742.0,0.0424]
[1773517643578,0.043954,70753.0,70742.0,0.0424]
[1773517643878,0.042394,70753.0,70742.0,0.0424]
[1773517644078,0.043954,70753.0,70742.0,0.0424]
[1773517644376,0.042394,70753.0,70742.0,0.0424]
[1773517644576,0.043954,70753.0,70742.0,0.0424]
[1773517644878,0.042394,70753.0,70742.0,0.0424]
[1773517645181,0.043954,70753.0,70742.0,0.0424]
[1773517645477,0.042394,70753.0,70742.0,0.0424]
[1773517646070,0.043954,70753.0,70742.0,0.0424]
[1773517646270,0.043954,70753.0,70740.0,0.11619903]
[1773517646880,0.042394,70753.0,70740.0,0.11619903]
[1773517647081,0.043954,70753.0,70740.0,0.11619903]
[1773517647380,0.042394,70753.0,70740.0,0.11619903]
[1773517647570,0.043954,70753.0,70740.0,0.11619903]
[1773517648383,0.042394,70753.0,70740.0,0.11619903]
[1773517648681,0.043954,70753.0,70740.0,0.11619903]
[1773517648881,0.042395,70752.0,70740.0,0.11619903]
[1773517653085,0.042395,70752.0,70740.0,0.042402]
[1773517654488,0.042396,70751.0,70740.0,0.042402]
[1773517655592,0.042397,70749.0,70738.0,0.0109025]
[1773517656990,0.042397,70749.0,70737.0,0.042403]
[1773517662196,0.042396,70751.0,70738.0,0.042403]
[1773517662694,0.043954,70753.0,70735.0,0.0124625]
[1773517662996,0.043954,70753.0,70736.0,0.0109025]
[1773517663996,0.043954,70753.0,70740.0,0.042402]
[1773517669390,0.043954,70753.0,70741.0,0.042401]
[1773517695317,0.043954,70753.0,70742.0,0.0424]
[1773517695518,0.00156,70754.0,70742.0,0.05254868]
[1773517695812,0.042393,70755.0,70742.0,0.05254868]
[1773517696016,0.043953,70755.0,70742.0,0.05254868]
[1773517703119,0.043953,70755.0,70742.0,0.0424]
[1773517703319,0.01125,70759.0,70741.0,0.01123213]
[1773517703622,0.042391,70758.0,70745.0,0.042398]
[1773517704016,0.042391,70758.0,70746.0,0.042398]
[1773517705306,0.042391,70758.0,70746.0,0.05207013]
[1773517705511,0.042391,70758.0,70747.0,0.00156]
[1773517706720,0.042391,70758.0,70746.0,0.05207013]
[1773517707026,0.04395,70760.0,70747.0,0.042397]
[1773517707321,0.04395,70760.0,70748.0,0.00156]
[1773517708423,0.04395,70760.0,70748.0,0.043957]
[1773517709807,0.04395,70760.0,70748.0,0.00156]
[1773517710222,0.042388,70764.0,70752.0,0.042394]
[1773517711124,0.042389,70763.0,70750.0,0.11617477]
[1773517711313,0.042389,70763.0,70751.0,0.042395]
[1773517712327,0.042387,70765.0,70752.0,0.042394]
[1773517719015,0.01281,70767.0,70751.0,0.00967213]
[1773517719220,0.01125,70767.0,70751.0,0.00967213]
[1773517719922,0.01125,70767.0,70757.0,0.042392]
[1773517720130,0.01125,70767.0,70757.0,0.043952]
[1773517720627,0.042384,70770.0,70757.0,0.043952]
[1773517721128,0.042384,70770.0,70758.0,0.042391]
[1773517722322,0.01125,70777.0,70759.0,0.00967213]
[1773517722522,0.01125,70777.0,70765.0,0.042387]
[1773517722733,0.02103377,70777.0,70766.0,0.042386]
[1773517723121,0.02103377,70777.0,70767.0,0.00156]
[1773517723321,0.01125,70777.0,70767.0,0.00156]
[1773517723730,4.003e-05,70778.0,70767.0,0.00156]
[1773517726634,0.05216177,70780.0,70767.0,0.00156]
[1773517730841,0.042379,70779.0,70767.0,0.00156]
[1773517741946,0.05194781,70779.0,70767.0,0.00156]
[1773517752153,0.05194781,70779.0,70767.0,0.043946]
[1773517759660,0.05194781,70779.0,70768.0,0.00156]
[1773517777276,0.0007064,70781.0,70768.0,0.00156]
[1773517777471,0.0007064,70781.0,70772.0,0.042383]
[1773517777669,0.0007064,70781.0,70772.0,0.04242302]
[1773517782779,0.0007064,70781.0,70768.0,0.00156]
[1773517782780,0.01041861,70781.0,70768.0,0.00156]
[1773517782964,0.0007064,70781.0,70762.0,0.043948]
[1773517783163,0.00971221,70775.0,70763.0,0.043948]
[1773517783363,0.00971221,70775.0,70764.0,0.00156]
[1773517783564,0.00971221,70775.0,70765.0,0.00156]
[1773517784182,0.00971221,70775.0,70764.0,0.043947]
[1773517784365,0.00971221,70775.0,70755.0,0.16906536]
[1773517784870,0.00156,70780.0,70754.0,0.00156]
[1773517784871,0.00971221,70769.0,70754.0,0.00156]
[1773517785276,0.00971221,70768.0,70756.0,0.042392]
[1773517786071,0.00971221,70768.0,70757.0,0.042391]
[1773517789185,0.043944,70770.0,70758.0,0.042391]
[1773517789484,0.00156,70770.0,70758.0,0.042391]
[1773517789877,0.01125,70777.0,70766.0,0.042386]
[1773517791686,0.042379,70779.0,70766.0,0.042386]
[1773517794277,0.042379,70779.0,70767.0,0.042385]
[1773517795384,0.00156,70780.0,70767.0,0.042385]
[1773517801587,0.00156,70780.0,70768.0,0.042385]
[1773517801783,0.042379,70779.0,70765.0,0.042387]
[1773517801991,0.00156,70780.0,70765.0,0.042387]
[1773517801992,0.04238,70777.0,70765.0,0.042387]
[1773517802191,0.043939,70780.0,70766.0,0.042386]
[1773517804782,0.042379,70778.0,70766.0,0.042386]
[1773517805493,0.042379,70778.0,70763.0,0.00156]
[1773517805494,0.042379,70778.0,70767.0,0.042386]
[1773517805993,0.042379,70778.0,70763.0,0.00156]
[1773517806696,0.042387,70765.0,70746.0,0.00980543]
[1773517806897,0.00980127,70769.0,70753.0,0.042394]
[1773517807086,0.00980127,70769.0,70747.0,0.00156]
[1773517807395,0.042387,70766.0,70753.0,0.042394]
[1773517807785,0.00980127,70764.0,70748.0,0.00156]
[1773517807986,0.00156,70770.0,70746.0,0.043958]
[1773517807987,0.00980127,70768.0,70746.0,0.043958]
[1773517808194,0.04239,70760.0,70746.0,0.043958]
[1773517808392,0.04239,70760.0,70746.0,0.042398]
[1773517808590,0.04239,70760.0,70746.0,0.043958]
[1773517809786,0.04239,70760.0,70746.0,0.042398]
[1773517810291,0.04239,70760.0,70747.0,0.00156]
[1773517810594,0.04239,70760.0,70746.0,0.042398]
[1773517818604,0.04239,70760.0,70747.0,0.042397]
[1773517823406,0.042391,70758.0,70745.0,0.042399]
[1773517823903,0.00156,70762.0,70744.0,0.00156]
[1773517823904,0.0092032,70761.0,70744.0,0.00156]
[1773517824806,0.042391,70758.0,70746.0,0.042398]
[1773517833816,0.00156,70761.0,70731.0,0.16880581]
[1773517833817,0.0092032,70750.0,70731.0,0.16880581]
[1773517834118,0.042394,70753.0,70740.0,0.042402]
[1773517835204,0.042394,70753.0,70739.0,0.00156]
[1773517835402,0.042395,70752.0,70739.0,0.00156]
[1773517836219,0.042394,70754.0,70739.0,0.043962]
[1773517836405,0.0092032,70756.0,70739.0,0.00156]
[1773517836406,0.042395,70753.0,70739.0,0.00156]
[1773517836603,0.07377541,70770.0,70741.0,0.00992832]
[1773517836604,0.00156,70759.0,70741.0,0.00992832]
[1773517837217,0.01125,70762.0,70741.0,0.00992832]
[1773517837424,0.00156,70760.0,70741.0,0.00992832]
[1773517837717,0.01125,70762.0,70741.0,0.00992832]
[1773517837912,0.00156,70761.0,70741.0,0.00992832]
[1773517838119,0.00156,70761.0,70744.0,0.042399]
[1773517838120,0.042392,70758.0,70744.0,0.042399]
[1773517838313,0.042392,70758.0,70745.0,0.00156]
[1773517840523,0.042392,70758.0,70745.0,0.043959]
[1773517842222,0.0092032,70761.0,70745.0,0.00156]
[1773517843022,0.042394,70755.0,70745.0,0.00156]
[1773517852244,0.042392,70757.0,70745.0,0.00156]
[1773517852946,0.042393,70756.0,70745.0,0.00156]
[1773517856246,0.042393,70756.0,70744.0,0.042399]
[1773517858646,0.042393,70756.0,70745.0,0.00156]
[1773517868851,0.05235992,70756.0,70745.0,0.00156]
[1773517872152,0.00996692,70754.0,70742.0,0.0424]
[1773517872352,0.00996692,70754.0,70743.0,0.00156]
[1773517872745,0.00996692,70754.0,70744.0,0.00156]
[1773517873949,0.05236092,70754.0,70744.0,0.00156]
[1773517874151,0.00996692,70753.0,70744.0,0.00156]
[1773517882863,0.00996692,70753.0,70742.0,0.0424]
[1773517883055,0.00996692,70753.0,70743.0,0.00156]
[1773517888867,0.042394,70754.0,70743.0,0.00156]
[1773517889057,0.00907016,70753.0,70743.0,0.00156]
[1773517896572,0.00907016,70753.0,70744.0,0.00156]
[1773517896870,0.00907016,70753.0,70745.0,0.00156]
[1773517920980,0.00926234,70759.0,70737.0,0.00156]
[1773517921180,0.0424,70743.0,70730.0,0.21169365]
[1773517921481,0.00156,70742.0,70727.0,0.00156]
[1773517921682,0.00926234,70741.0,70728.0,0.00156]
[1773517922195,0.00926234,70741.0,70724.0,0.042411]
[1773517922390,0.042403,70739.0,70725.0,0.04397]
[1773517922689,0.00926234,70738.0,70725.0,0.04241]
[1773517922900,0.00926234,70738.0,70726.0,0.00156]
[1773517923201,0.00926234,70738.0,70725.0,0.04241]
[1773517923493,0.00926234,70738.0,70726.0,0.00156]
[1773517923791,0.00926234,70738.0,70725.0,0.04241]
[1773517923980,0.00926234,70738.0,70727.0,0.00156]
[1773517924385,0.00926234,70738.0,70728.0,0.00156]
[1773517924589,0.00926234,70738.0,70724.0,0.00156]
[1773517926189,0.00926234,70738.0,70727.0,0.042409]
[1773517929893,0.042402,70741.0,70727.0,0.042409]
[1773517934400,0.00926234,70740.0,70727.0,0.042409]
[1773517941199,0.042402,70741.0,70727.0,0.042409]
[1773517947001,0.042402,70741.0,70724.0,0.00156]
[1773517947002,0.042402,70741.0,70728.0,0.042409]
[1773517959813,0.00943859,70740.0,70724.0,0.00156]
[1773517960113,0.042403,70739.0,70727.0,0.042409]
[1773517960715,0.05184159,70739.0,70727.0,0.042409]
[1773517967512,0.05184159,70739.0,70728.0,0.042409]
[1773517974816,0.042402,70741.0,70728.0,0.042409]
[1773517978018,0.00156,70742.0,70730.0,0.042408]
[1773517978317,0.00156,70742.0,70730.0,0.043968]
[1773517978518,0.01125,70747.0,70736.0,0.042404]
[1773517979918,0.053648,70747.0,70730.0,0.07537748]
[1773517980117,0.00156,70749.0,70731.0,0.00973097]
[1773517980819,0.01154001,70749.0,70731.0,0.00973097]
[1773517981021,0.042399,70746.0,70733.0,0.042406]
[1773517999227,0.042399,70746.0,70734.0,0.042405]
[1773518005433,0.042399,70746.0,70735.0,0.042405]
[1773518016942,0.042396,70751.0,70736.0,0.01131744]
[1773518017743,0.042396,70751.0,70736.0,0.00156]
[1773518017944,0.042396,70751.0,70738.0,0.042403]
[1773518018330,0.042397,70749.0,70736.0,0.043964]
[1773518018535,0.042398,70748.0,70736.0,0.043964]
[1773518021245,0.042396,70750.0,70737.0,0.042403]
[1773518030958,0.042397,70749.0,70737.0,0.042403]
[1773518049372,0.042397,70748.0,70737.0,0.042403]
[1773518054478,0.042397,70748.0,70736.0,0.00156]
[1773518061785,0.05226485,70748.0,70736.0,0.00156]
[1773518089609,0.042399,70745.0,70736.0,0.00156]
[1773518089802,0.00986785,70744.0,70736.0,0.00156]
[1773518111434,0.0518009,70748.0,70736.0,0.00156]
[1773518111625,0.0518009,70748.0,70738.0,0.07379453]
[1773518111825,0.0094029,70747.0,70736.0,0.00156]
[1773518112625,0.042398,70748.0,70736.0,0.043964]
[1773518114130,0.042398,70748.0,70738.0,0.07379453]
[1773518114730,0.0094029,70751.0,70738.0,0.07379453]
[1773518114932,0.042393,70756.0,70742.0,0.0424]
[1773518115133,0.042393,70756.0,70746.0,0.07379453]
[1773518115332,0.042393,70756.0,70743.0,0.00156]
[1773518115533,0.042393,70756.0,70746.0,0.06852239]
[1773518115924,0.00156,70758.0,70746.0,0.06852239]
[1773518115925,0.042393,70755.0,70746.0,0.06852239]
[1773518116122,0.042393,70755.0,70743.0,0.00156]
[1773518116635,0.0517959,70755.0,70744.0,0.00156]
[1773518123736,0.042394,70754.0,70744.0,0.00156]
[1773518126126,0.00928298,70760.0,70749.0,0.042396]
[1773518126328,0.042391,70759.0,70750.0,0.07379453]
[1773518127227,0.042391,70759.0,70748.0,0.042397]
[1773518128339,0.00928298,70760.0,70748.0,0.042397]
[1773518128529,0.00928298,70760.0,70749.0,0.042396]
[1773518130343,0.00928298,70760.0,70750.0,0.07376933]
[1773518131141,0.06869299,70761.0,70750.0,0.07376933]
[1773518131340,0.02630299,70761.0,70750.0,0.11616533]
[1773518131543,0.02786299,70761.0,70750.0,0.11616533]
[1773518131739,0.02786299,70761.0,70750.0,0.042396]
[1773518131939,0.02630299,70761.0,70750.0,0.042396]
[1773518132644,0.06869299,70761.0,70748.0,0.042397]
[1773518133345,0.06869299,70761.0,70750.0,0.07376933]
[1773518133643,0.06869299,70761.0,70748.0,0.042397]
[1773518134247,0.06869299,70761.0,70749.0,0.042396]
[1773518136154,0.02630299,70761.0,70725.0,0.00998328]
[1773518136450,0.02630299,70761.0,70733.0,0.042406]
[1773518136451,0.00928298,70745.0,70733.0,0.042406]
[1773518136642,0.00928298,70745.0,70733.0,0.043966]
[1773518136844,0.00928298,70745.0,70734.0,0.042405]
[1773518138952,0.00928298,70745.0,70735.0,0.042404]
[1773518141853,0.042397,70748.0,70735.0,0.042404]
[1773518160468,0.042397,70748.0,70735.0,0.03240902]
[1773518161561,0.05211346,70747.0,70735.0,0.03240902]
[1773518166666,0.042398,70747.0,70735.0,0.03240902]
[1773518174474,0.00156,70749.0,70733.0,0.043966]
[1773518174475,0.042399,70746.0,70733.0,0.043966]
[1773518174673,0.042399,70746.0,70720.0,0.254563]
[1773518174674,0.00971546,70744.0,70725.0,0.00156]
[1773518174868,0.00971546,70748.0,70725.0,0.00156]
[1773518175069,0.042402,70740.0,70725.0,0.00156]
[1773518175269,0.05211746,70740.0,70725.0,0.00156]
[1773518175775,0.00971546,70740.0,70720.0,0.07376933]
[1773518176171,0.00971546,70740.0,70721.0,0.00156]
[1773518176371,0.042403,70739.0,70726.0,0.04241]
[1773518176572,0.05211846,70739.0,70726.0,0.04241]
[1773518180378,0.05211846,70739.0,70727.0,0.00156]
[1773518188085,0.05211846,70739.0,70727.0,0.043969]
[1773518194191,0.05211846,70739.0,70729.0,0.07381748]
[1773518197492,0.042403,70739.0,70729.0,0.07381748]
[1773518202100,0.042403,70739.0,70727.0,0.043969]
[1773518205103,0.042403,70739.0,70729.0,0.07381748]
[1773518217912,0.042403,70739.0,70727.0,0.043969]
[1773518220213,0.042403,70739.0,70729.0,0.07381748]
[1773518221709,0.042403,70739.0,70727.0,0.043969]
[1773518221915,0.042403,70739.0,70719.0,0.00912258]
[1773518221916,0.042405,70735.0,70722.0,0.042412]
[1773518222116,0.0094034,70734.0,70723.0,0.00156]
[1773518222715,0.0518094,70734.0,70723.0,0.00156]
[1773518223116,0.0094034,70733.0,70721.0,0.042413]
[1773518224018,0.0094034,70733.0,70720.0,0.07381748]
[1773518225004,0.00156,70732.0,70720.0,0.07381748]
[1773518225318,0.00156,70732.0,70720.0,0.11623148]
[1773518232323,0.00156,70732.0,70721.0,0.042413]
[1773518242719,0.00156,70732.0,70722.0,0.042412]